bitfinex-derivatives/quotes_BNBF0:USTF0_20251010
["timestamp","ask_amount","ask_price","bid_price","bid_amount"]
[1760106756459,0.19702762,1251.6,1251.5,0.59651984]
[1760106756662,0.19702762,1251.6,1251.3,0.79257143]
[1760106757161,0.19702762,1251.6,1251.4,0.19605159]
[1760106757663,0.19702762,1251.7,1251.4,0.19605159]
[1760106758564,0.19702762,1251.8,1251.4,0.99095586]
[1760106758861,0.19702762,1251.8,1251.7,0.59657364]
[1760106759359,0.19702762,1251.9,1251.6,0.99095586]
[1760106759564,0.19702762,1251.9,1251.8,0.59648319]
[1760106759763,0.19702762,1252.0,1251.8,0.19605159]
[1760106759959,0.19702762,1252.0,1251.9,0.59644543]
[1760106760260,0.19702762,1252.0,1251.8,0.79249702]
[1760106763864,0.19702762,1252.0,1251.8,0.19605159]
[1760106764062,0.33604106,1252.1,1251.9,0.19605159]
[1760106765965,0.19702762,1252.0,1251.9,0.59644543]
[1760106766170,0.33604106,1252.1,1251.9,0.59644543]
[1760106766569,0.33604106,1252.1,1252.0,0.59644543]
[1760106767468,0.13901344,1252.1,1252.0,0.59644543]
[1760106768773,0.13901344,1252.1,1252.0,0.79249702]
[1760106770371,0.13901344,1252.1,1252.0,0.19605159]
[1760106770872,0.19702762,1252.4,1252.0,0.19605159]
[1760106771073,0.19702762,1252.4,1252.3,0.59556494]
[1760106771271,0.33593065,1252.4,1252.2,0.79161653]
[1760106771471,0.33593065,1252.4,1252.3,0.59556494]
[1760106771675,0.33593065,1252.4,1252.2,0.79161653]
[1760106771874,0.33593065,1252.4,1252.1,0.79161653]
[1760106772074,0.19702762,1252.3,1252.1,0.79161653]
[1760106772375,0.33593065,1252.4,1252.1,0.79161653]
[1760106772578,0.33593065,1252.4,1252.2,0.59556494]
[1760106773075,0.33593065,1252.4,1252.2,0.79161653]
[1760106773579,0.13890303,1252.4,1252.2,0.79161653]
[1760106773776,0.13890303,1252.4,1252.3,0.59556494]
[1760106773979,0.13890303,1252.4,1252.3,0.79161653]
[1760106774579,0.13890303,1252.4,1252.3,0.59556494]
[1760106774775,0.13890303,1252.4,1252.3,0.79379317]
[1760106775177,0.13890303,1252.4,1252.3,0.59556494]
[1760106775583,0.13890303,1252.4,1252.3,0.79370472]
[1760106776377,0.13890303,1252.4,1252.3,0.19813978]
[1760106777181,0.13890303,1252.4,1252.2,0.79370472]
[1760106777480,0.13890303,1252.4,1252.2,0.19813978]
[1760106779480,0.13890303,1252.4,1252.3,0.19813978]
[1760106779884,0.13890303,1252.4,1252.2,0.19813978]
[1760106780583,0.13890303,1252.4,1252.2,0.79370472]
[1760106780883,0.13890303,1252.4,1252.2,0.59556494]
[1760106781183,0.13890303,1252.4,1252.1,0.59556494]
[1760106781384,0.13890303,1252.4,1252.2,0.59556494]
[1760106781788,0.13890303,1252.4,1252.1,0.59556494]
[1760106781988,0.13890303,1252.4,1252.3,0.19787065]
[1760106782385,0.13890303,1252.4,1252.1,0.19787065]
[1760106782588,0.19702762,1252.2,1252.0,0.19787065]
[1760106784489,0.33593065,1252.4,1252.0,0.79343559]
[1760106784884,0.33593065,1252.4,1251.7,0.79408659]
[1760106784885,0.33593065,1252.4,1252.1,0.19787065]
[1760106785589,0.19702762,1252.3,1252.0,0.19787065]
[1760106785790,0.19702762,1252.3,1251.8,0.19787065]
[1760106786090,0.19702762,1252.0,1251.7,0.19787065]
[1760106786690,0.19702762,1251.9,1251.7,0.19787065]
[1760106787894,0.19702762,1252.0,1251.7,0.19787065]
[1760106790091,0.19702762,1251.9,1251.7,0.19787065]
[1760106791797,0.19702762,1251.9,1251.6,0.19787065]
[1760106791994,0.19702762,1251.9,1249.8,1.9872606]
[1760106792395,0.13890303,1252.4,1244.9,0.13895405]
[1760106793299,0.19641441,1251.8,1251.6,0.1979476]
[1760106795198,0.19641441,1251.9,1251.7,0.1979476]
[1760106795999,0.19641441,1252.0,1251.7,0.1979476]
[1760106796197,0.19641441,1252.0,1251.8,0.1979476]
[1760106796400,0.19641441,1252.1,1251.8,0.7917904]
[1760106796700,0.19641441,1252.2,1252.0,0.1979476]
[1760106796896,0.19641441,1252.2,1251.9,0.7917904]
[1760106797101,0.19641441,1252.3,1251.9,0.7917904]
[1760106797396,0.19641441,1252.3,1252.1,0.1979476]
[1760106797600,0.33531744,1252.4,1252.1,0.1979476]
[1760106798098,0.19641441,1252.3,1252.1,0.1979476]
[1760106801702,0.19641441,1252.3,1252.0,0.1979476]
[1760106802902,0.19641441,1252.3,1252.1,0.1979476]
[1760106807605,0.19641441,1252.3,1252.0,0.1979476]
[1760106808101,0.19641441,1252.2,1252.0,0.1979476]
[1760106808305,0.19641441,1252.2,1251.9,0.1979476]
[1760106809708,0.19641441,1252.2,1251.9,0.7917904]
[1760106810004,0.19641441,1252.2,1252.0,0.1979476]
[1760106810604,0.19641441,1252.2,1251.9,0.1979476]
[1760106811608,0.19641441,1252.1,1251.9,0.1979476]
[1760106812005,0.19641441,1252.0,1251.8,0.1979476]
[1760106812304,0.19641441,1252.0,1251.7,0.7917904]
[1760106812605,0.19641441,1251.9,1251.7,0.7917904]
[1760106814713,0.19641441,1251.9,1251.7,0.1979476]
[1760106815011,0.19641441,1252.1,1251.8,0.5938428]
[1760106815211,0.19641441,1252.1,1251.9,0.1979476]
[1760106815409,0.19641441,1252.2,1251.9,0.1979476]
[1760106815809,0.19641441,1252.2,1251.9,0.7917904]
[1760106816415,0.19641441,1252.1,1251.9,0.7917904]
[1760106817417,0.19641441,1252.1,1252.0,0.5938428]
[1760106818115,0.19641441,1252.1,1251.9,0.1979476]
[1760106818313,0.19641441,1252.1,1251.7,0.1979476]
[1760106818512,0.19641441,1251.9,1251.7,0.1979476]
[1760106819513,0.19641441,1252.0,1251.7,0.1979476]
[1760106819916,0.19641441,1252.0,1251.7,0.7917904]
[1760106820214,0.19641441,1252.0,1251.8,0.5938428]
[1760106820414,0.19641441,1252.0,1251.8,0.7917904]
[1760106820618,0.19641441,1252.3,1251.8,0.989738]
[1760106820917,0.19641441,1252.3,1252.1,0.59573605]
[1760106821118,0.19641441,1252.3,1252.1,0.79368365]
[1760106829230,0.19641441,1252.3,1252.0,0.79368365]
[1760106829625,0.19641441,1252.2,1252.0,0.79368365]
[1760106830126,0.19641441,1252.2,1252.1,0.59573605]
[1760106831121,0.19641441,1252.2,1252.0,0.79368365]
[1760106831324,0.19641441,1252.2,1252.1,0.59573605]
[1760106833522,0.19641441,1252.3,1252.1,0.59573605]
[1760106833728,0.19641441,1252.3,1252.1,0.79368365]
[1760106835122,0.19641441,1252.3,1252.1,0.1979476]
[1760106835524,0.19641441,1252.2,1252.0,0.1979476]
[1760106835724,0.19641441,1252.2,1251.8,0.79368365]
[1760106836127,0.13890303,1252.4,1251.8,0.79368365]
[1760106836128,0.19641441,1252.1,1251.8,0.79368365]
[1760106836923,0.19641441,1252.1,1251.6,0.79368365]
[1760106837229,0.19641441,1251.8,1251.6,0.79368365]
[1760106837429,0.19641441,1251.9,1251.6,0.79368365]
[1760106840329,0.19641441,1251.9,1251.7,0.1979476]
[1760106840630,0.19641441,1252.1,1251.8,0.59573605]
[1760106840829,0.19641441,1252.1,1251.9,0.1979476]
[1760106841126,0.19641441,1252.2,1251.9,0.79368365]
[1760106841331,0.19641441,1252.2,1252.0,0.79368365]
[1760106842928,0.19641441,1252.2,1251.9,0.79368365]
[1760106843428,0.19641441,1252.2,1252.0,0.59573605]
[1760106843929,0.19641441,1252.1,1252.0,0.59573605]
[1760106844134,0.19641441,1252.1,1251.9,0.79368365]
[1760106844431,0.19641441,1252.2,1251.9,0.79368365]
[1760106844630,0.19641441,1252.2,1251.9,0.1979476]
[1760106844834,0.19641441,1252.1,1251.8,0.79368365]
[1760106845031,0.19641441,1252.1,1251.9,0.59573605]
[1760106845333,0.19641441,1252.0,1251.9,0.59573605]
[1760106847536,0.19641441,1252.0,1251.8,0.59573605]
[1760106847835,0.13890303,1252.4,1251.9,0.59573605]
[1760106848032,0.19731885,1252.1,1251.8,0.59573605]
[1760106848332,0.19731885,1252.1,1251.9,0.1979476]
[1760106848531,0.19731885,1252.1,1251.8,0.79368365]
[1760106848936,0.19731885,1252.1,1251.9,0.1979476]
[1760106849135,0.19731885,1252.1,1251.8,0.79368365]
[1760106849635,0.19731885,1252.0,1251.8,0.59573605]
[1760106850031,0.19731885,1251.9,1251.8,0.59573605]
[1760106850332,0.19731885,1251.9,1251.7,0.59573605]
[1760106852337,0.19731885,1251.9,1251.6,0.79368365]
[1760106852538,0.19731885,1251.9,1251.4,0.79368365]
[1760106852735,0.19731885,1251.6,1251.4,0.79368365]
[1760106853136,0.19731885,1251.6,1251.5,0.59573605]
[1760106853836,0.19731885,1251.6,1251.4,0.79368365]
[1760106854337,0.19731885,1251.7,1251.4,0.1979476]
[1760106854540,0.19731885,1251.9,1251.6,0.59625576]
[1760106854740,0.19731885,1251.9,1251.7,0.19875192]
[1760106857741,0.19731885,1251.9,1251.7,0.79500768]
[1760106859542,0.19731885,1252.0,1251.8,0.79500768]
[1760106860041,0.19731885,1252.0,1251.8,0.59625576]
[1760106860241,0.19731885,1252.0,1251.7,0.79500768]
[1760106860444,0.19731885,1252.0,1251.8,0.19875192]
[1760106860640,0.19731885,1252.0,1251.8,0.79500768]
[1760106861145,0.19731885,1252.0,1251.7,0.79500768]
[1760106861646,0.19731885,1251.9,1251.7,0.79500768]
[1760106861843,0.19731885,1251.9,1251.0,1.1876856]
[1760106861844,0.19731885,1251.9,1251.6,0.79500768]
[1760106862043,0.19731885,1251.8,1251.6,0.79500768]
[1760106862244,0.19731885,1251.8,1251.5,0.79500768]
[1760106862647,0.19731885,1251.7,1251.5,0.79500768]
[1760106863142,0.19731885,1251.8,1251.6,0.59625576]
[1760106863843,0.19731885,1251.9,1251.7,0.79500768]
[1760106864047,0.19731885,1252.1,1251.8,0.59625576]
[1760106864348,0.13890303,1252.4,1252.0,0.19875192]
[1760106864349,0.19731885,1252.3,1252.0,0.19875192]
[1760106864549,0.19731885,1252.3,1252.2,0.59605117]
[1760106866145,0.19731885,1252.3,1252.1,0.59605117]
[1760106866850,0.19731885,1252.3,1252.0,0.19875192]
[1760106866851,0.19731885,1252.3,1252.2,0.59605117]
[1760106867646,0.19731885,1252.3,1252.1,0.79480309]
[1760106867849,0.33622188,1252.4,1252.1,0.79480309]
[1760106868044,0.33622188,1252.4,1252.2,0.19875192]
[1760106868349,0.33622188,1252.4,1252.2,0.79480309]
[1760106869650,0.33622188,1252.4,1252.2,0.19875192]
[1760106869848,0.33622188,1252.4,1252.2,0.79462798]
[1760106871049,0.33622188,1252.4,1252.2,0.19875192]
[1760106871351,0.33622188,1252.4,1252.1,0.79462798]
[1760106872048,0.33622188,1252.4,1252.2,0.59587606]
[1760106872453,0.33622188,1252.4,1252.0,0.19875192]
[1760106872752,0.19731885,1252.2,1252.0,0.19875192]
[1760106874952,0.19731885,1252.3,1252.0,0.79462798]
[1760106875154,0.19731885,1252.3,1252.1,0.19875192]
[1760106875652,0.33622188,1252.4,1252.1,0.79462798]
[1760106875848,0.13890303,1252.4,1252.2,0.59587606]
[1760106876049,0.13890303,1252.4,1252.3,0.79462798]
[1760106876752,0.19731885,1252.6,1252.3,0.19875192]
[1760106876952,0.19731885,1253.0,1252.5,0.59587606]
[1760106877153,0.13890192,1252.8,1252.5,0.59587606]
[1760106878251,0.13890192,1252.8,1252.4,0.59587606]
[1760106879248,0.13890192,1252.8,1252.6,0.59587606]
[1760106880249,0.13890192,1252.8,1252.5,0.7917904]
[1760106880653,0.13890192,1252.8,1252.7,0.59374952]
[1760106881454,0.19731885,1253.2,1252.7,0.59374952]
[1760106881754,0.1388609,1253.0,1252.9,0.19780372]
[1760106882252,0.1388609,1253.0,1252.8,0.59374952]
[1760106883150,0.19731885,1253.3,1252.8,0.59374952]
[1760106883354,0.13883985,1253.2,1253.1,0.19753175]
[1760106883952,0.13883985,1253.2,1251.0,1.979476]
[1760106883953,0.19731885,1253.5,1253.0,0.59374952]
[1760106884156,0.13883154,1253.4,1253.3,0.19748214]
[1760106884752,0.13883154,1253.4,1253.1,0.59374952]
[1760106886259,0.13883154,1253.4,1253.0,0.59374952]
[1760106888162,0.13883154,1253.4,1252.9,0.59374952]
[1760106888356,0.13883154,1253.4,1253.0,0.59374952]
[1760106889261,0.13883154,1253.4,1252.9,0.59374952]
[1760106891463,0.13883154,1253.4,1252.8,0.59374952]
[1760106896068,0.19731885,1253.7,1252.8,0.59374952]
[1760106896366,0.13880884,1253.6,1253.5,0.19591503]
[1760106896865,0.13880884,1253.6,1253.0,0.59374952]
[1760106897064,0.13880884,1253.6,1252.9,0.59374952]
[1760106899164,0.13880884,1253.6,1252.8,0.59374952]
[1760106899365,0.13880884,1253.6,1252.9,0.59374952]
[1760106900370,0.13880884,1253.6,1252.8,0.59374952]
[1760106901167,0.13880884,1253.6,1252.6,0.59374952]
[1760106901567,0.13880884,1253.6,1253.4,0.19568344]
[1760106901866,0.33612769,1253.6,1253.4,0.19568344]
[1760106902572,0.13880884,1253.6,1253.4,0.19568344]
[1760106902972,0.13880884,1253.6,1253.5,0.19568344]
[1760106904573,0.13880884,1253.6,1253.4,0.19568344]
[1760106904973,0.33612769,1253.6,1253.3,0.19568344]
[1760106906371,0.19731885,1253.5,1253.3,0.19568344]
[1760106906572,0.33612769,1253.6,1253.3,0.19568344]
[1760106906975,0.19731885,1253.5,1253.3,0.19568344]
[1760106907477,0.33612769,1253.6,1253.3,0.19568344]
[1760106910377,0.33612769,1253.6,1251.8,1.1876856]
[1760106910378,0.33612769,1253.6,1253.1,0.19568344]
[1760106910573,0.19731885,1253.2,1253.0,0.19568344]
[1760106912076,0.19731885,1253.2,1252.9,0.19568344]
[1760106913883,0.19731885,1253.2,1252.0,0.7917904]
[1760106913884,0.19731885,1253.2,1252.8,0.19568344]
[1760106914183,0.19731885,1253.1,1252.8,0.19568344]
[1760106914785,0.19731885,1253.1,1252.9,0.19568344]
[1760106916884,0.19731885,1253.2,1253.0,0.19568344]
[1760106917184,0.19731885,1253.3,1253.0,0.19568344]
[1760106917485,0.19731885,1253.3,1253.1,0.19568344]
[1760106917882,0.19731885,1253.4,1253.2,0.19568344]
[1760106918284,0.19731885,1253.5,1253.2,0.19568344]
[1760106918891,0.33612769,1253.6,1253.2,0.19568344]
[1760106919092,0.33612769,1253.6,1253.3,0.19568344]
[1760106919590,0.19731885,1253.5,1253.2,0.19568344]
[1760106919789,0.19731885,1253.5,1253.1,0.19568344]
[1760106920089,0.19731885,1253.3,1253.1,0.19568344]
[1760106920991,0.19731885,1253.4,1253.1,0.19568344]
[1760106922695,0.19731885,1253.3,1253.1,0.19568344]
[1760106924597,0.19731885,1253.3,1253.0,0.19568344]
[1760106924898,0.19662034,1253.2,1252.9,0.19568344]
[1760106926995,0.19662034,1253.2,1253.0,0.19568344]
[1760106927399,0.19662034,1253.2,1252.9,0.19568344]
[1760106927799,0.19662034,1253.2,1253.0,0.19568344]
[1760106928096,0.19662034,1253.2,1252.9,0.19568344]
[1760106929904,0.19662034,1253.0,1252.8,0.19568344]
[1760106931804,0.19662034,1253.1,1252.8,0.19568344]
[1760106932303,0.19662034,1253.0,1252.8,0.19568344]
[1760106932699,0.19662034,1253.1,1252.8,0.19568344]
[1760106933800,0.19662034,1253.1,1252.9,0.19568344]
[1760106935306,0.19662034,1253.1,1252.8,0.19568344]
[1760106936402,0.19662034,1253.1,1252.9,0.19568344]
[1760106936606,0.19662034,1253.2,1252.9,0.19568344]
[1760106936800,0.19662034,1253.2,1253.0,0.19568344]
[1760106938706,0.19662034,1253.3,1253.0,0.19568344]
[1760106939110,0.19662034,1253.3,1253.1,0.19568344]
[1760106940010,0.19662034,1253.3,1253.0,0.19568344]
[1760106941112,0.19662034,1253.3,1252.9,0.19568344]
[1760106941510,0.19662034,1253.1,1252.9,0.19568344]
[1760106941910,0.19662034,1253.2,1252.9,0.19568344]
[1760106942507,0.19662034,1253.2,1252.9,0.78249392]
[1760106943911,0.19662034,1253.2,1252.9,0.19568344]
[1760106944111,0.19662034,1253.1,1252.9,0.19568344]
[1760106949410,0.19662034,1253.1,1252.8,0.19568344]
[1760106949810,0.19662034,1253.1,1252.9,0.19568344]
[1760106950510,0.19662034,1253.1,1252.8,0.19568344]
[1760106952414,0.19662034,1253.1,1252.8,0.78249392]
[1760106952614,0.19662034,1253.1,1252.7,0.78249392]
[1760106952912,0.19662034,1253.0,1252.7,0.78249392]
[1760106953112,0.19662034,1253.0,1252.7,0.58681048]
[1760106953310,0.13880884,1253.6,1252.5,0.19568344]
[1760106953512,0.19769825,1252.7,1252.5,0.19568344]
[1760106955014,0.19769825,1252.7,1252.4,0.19568344]
[1760106955419,0.19769825,1252.7,1252.5,0.19568344]
[1760106956016,0.19769825,1252.7,1252.4,0.19568344]
[1760106956619,0.13880884,1253.6,1252.1,0.19568344]
[1760106956919,0.19747751,1252.3,1252.1,0.19568344]
[1760106957820,0.19747751,1252.2,1252.0,0.19568344]
[1760106959321,0.19747751,1252.1,1251.9,0.19568344]
[1760106959518,0.19747751,1252.2,1251.9,0.19568344]
[1760106961124,0.19747751,1252.1,1251.9,0.19568344]
[1760106961324,0.19747751,1252.2,1251.9,0.19568344]
[1760106965530,0.19747751,1252.2,1252.0,0.19568344]
[1760106966628,0.19747751,1252.2,1251.9,0.19568344]
[1760106967231,0.19747751,1252.2,1252.0,0.19568344]
[1760106968129,0.19747751,1252.2,1251.9,0.19568344]
[1760106970729,0.19747751,1252.2,1252.0,0.19568344]
[1760106971435,0.19747751,1252.4,1252.0,0.19568344]
[1760106971730,0.19747751,1252.6,1252.2,0.78249392]
[1760106972031,0.19747751,1252.6,1252.4,0.19568344]
[1760106981137,0.19747751,1252.9,1252.4,0.19568344]
[1760106981637,0.19747751,1252.9,1252.6,0.19568344]
[1760106982136,0.19747751,1252.9,1252.7,0.19568344]
[1760106983036,0.19747751,1253.0,1252.8,0.19568344]
[1760106983336,0.19747751,1253.0,1252.4,0.19568344]
[1760106983540,0.19747751,1252.6,1252.4,0.19568344]
[1760106983940,0.19747751,1252.7,1252.4,0.19568344]
[1760106985941,0.19747751,1252.6,1252.4,0.19568344]
[1760106987038,0.13880884,1253.6,1252.1,0.19568344]
[1760106987238,0.1971918,1252.4,1252.1,0.19568344]
[1760106988143,0.1971918,1252.3,1252.1,0.19568344]
[1760106988339,0.1971918,1252.4,1252.1,0.19568344]
[1760106988843,0.1971918,1252.4,1251.8,0.19568344]
[1760106989243,0.13880884,1253.6,1251.8,0.19568344]
[1760106989244,0.1971918,1252.1,1251.8,0.19568344]
[1760106989440,0.1971918,1252.1,1248.4,1.979476]
[1760106989441,0.1971918,1252.1,1251.9,0.19568344]
[1760106991845,0.1971918,1252.2,1251.9,0.19568344]
[1760106992445,0.1971918,1252.2,1252.0,0.19568344]
[1760106993246,0.1971918,1252.2,1251.9,0.19568344]
[1760106993646,0.1971918,1252.1,1251.9,0.19568344]
[1760106993943,0.1971918,1252.1,1251.8,0.19568344]
[1760106994143,0.1971918,1252.0,1251.8,0.19568344]
[1760106994943,0.1971918,1252.0,1251.6,0.19568344]
[1760106995147,0.78565764,1253.4,1251.4,0.19568344]
[1760106995347,0.19703156,1251.6,1251.4,0.19568344]
[1760106995643,0.19703156,1251.6,1251.3,0.19568344]
[1760106997247,0.19703156,1251.6,1251.1,0.19568344]
[1760106997648,0.19703156,1251.4,1251.1,0.19568344]
[1760106999946,0.19703156,1251.4,1250.9,0.19568344]
[1760107000246,0.19703156,1251.2,1250.9,0.19568344]
[1760107000946,0.19703156,1251.2,1250.8,0.19568344]
[1760107001546,0.19703156,1251.2,1251.0,0.19568344]
[1760107001746,0.19703156,1251.2,1250.9,0.19568344]
[1760107002349,0.19703156,1251.1,1250.9,0.19568344]
[1760107002646,0.19703156,1251.0,1250.8,0.19568344]
[1760107003249,0.19703156,1250.9,1250.7,0.19568344]
[1760107003449,0.19703156,1250.9,1250.5,0.19568344]
[1760107004146,0.19703156,1251.0,1250.7,0.19568344]
[1760107005555,0.19703156,1251.1,1250.8,0.19568344]
[1760107006249,0.19703156,1251.1,1250.7,0.19568344]
[1760107006548,0.19703156,1250.9,1250.7,0.19568344]
[1760107006754,0.19703156,1251.0,1250.7,0.19568344]
[1760107008055,0.19703156,1251.1,1250.7,0.19568344]
[1760107008257,0.19703156,1251.1,1250.8,0.19568344]
[1760107008552,0.19703156,1251.0,1250.8,0.19568344]
[1760107009659,0.19703156,1251.1,1250.8,0.19568344]
[1760107011260,0.19703156,1251.1,1250.9,0.19568344]
[1760107011456,0.19703156,1251.2,1250.9,0.19568344]
[1760107011660,0.19703156,1251.2,1251.0,0.19568344]
[1760107012457,0.19703156,1251.2,1250.9,0.19568344]
[1760107013261,0.19703156,1251.1,1250.9,0.19568344]
[1760107014060,0.19703156,1251.1,1250.7,0.19568344]
[1760107014260,0.19703156,1251.0,1250.7,0.19568344]
[1760107014461,0.19703156,1251.1,1250.9,0.19568344]
[1760107014861,0.19703156,1251.2,1250.9,0.19568344]
[1760107016162,0.19703156,1251.2,1251.0,0.19568344]
[1760107017661,0.19703156,1251.2,1250.9,0.19568344]
[1760107019763,0.19703156,1251.1,1250.9,0.19568344]
[1760107020563,0.19703156,1251.2,1250.9,0.19568344]
[1760107020866,0.19703156,1251.3,1250.9,0.19568344]
[1760107021163,0.19703156,1251.4,1251.2,0.19568344]
[1760107021762,0.19703156,1251.5,1251.2,0.19568344]
[1760107022667,0.19703156,1251.5,1251.3,0.19568344]
[1760107024063,0.13899151,1251.5,1251.3,0.19568344]
[1760107024562,0.13899151,1251.5,1250.9,0.58681048]
[1760107025266,0.13899151,1251.5,1251.4,0.19650352]
[1760107026369,0.13899151,1251.5,1251.3,0.19650352]
[1760107027168,0.13899151,1251.5,1251.4,0.19650352]
[1760107028470,0.13899151,1251.5,1251.3,0.19650352]
[1760107028870,0.13899151,1251.5,1251.4,0.19650352]
[1760107030568,0.13899151,1251.5,1250.9,0.58681048]
[1760107031369,0.19703156,1251.7,1250.9,0.58681048]
[1760107031672,0.13902288,1251.7,1251.6,0.19658464]
[1760107032067,0.13902288,1251.7,1251.5,0.19658464]
[1760107032672,0.13902288,1251.7,1251.6,0.19658464]
[1760107036674,0.19703156,1251.9,1251.2,0.58681048]
[1760107036872,0.19703156,1252.0,1251.7,0.19680681]
[1760107037375,0.13893963,1252.0,1251.8,0.19680681]
[1760107038372,0.33597119,1252.0,1251.8,0.19680681]
[1760107038876,0.13893963,1252.0,1251.8,0.19680681]
[1760107040279,0.33597119,1252.0,1251.8,0.19680681]
[1760107040777,0.33597119,1252.0,1251.7,0.19680681]
[1760107040975,0.19703156,1251.9,1251.7,0.19680681]
[1760107046294,0.13893963,1252.0,1251.7,0.78361729]
[1760107046693,0.13893963,1252.0,1251.9,0.19680681]
[1760107046990,0.19703156,1252.3,1251.9,0.19680681]
[1760107047288,0.19703156,1252.3,1251.8,0.58681048]
[1760107047289,0.33598894,1252.3,1252.1,0.19680681]
[1760107053106,0.33598894,1252.3,1252.0,0.19680681]
[1760107057311,0.33598894,1252.3,1252.1,0.19680681]
[1760107059815,0.13895738,1252.3,1252.1,0.19680681]
[1760107060114,0.13895738,1252.3,1252.2,0.19680681]
[1760107060511,0.13895738,1252.3,1251.9,0.58681048]
[1760107062419,0.13895738,1252.3,1251.8,0.58681048]
[1760107063516,0.13895738,1252.3,1251.9,0.58681048]
[1760107064115,0.19703156,1252.5,1251.9,0.58681048]
[1760107064320,0.19703156,1252.5,1252.3,0.19661265]
[1760107064520,0.13892632,1252.5,1252.3,0.19661265]
[1760107064715,0.13892632,1252.5,1252.4,0.19661265]
[1760107076422,0.19703156,1252.9,1252.4,0.19661265]
[1760107076624,0.1389058,1252.8,1252.7,0.19661265]
[1760107077124,0.1389058,1252.8,1252.5,0.58681048]
[1760107077321,0.1389058,1252.8,1252.6,0.58681048]
[1760107077520,0.19703156,1253.0,1252.5,0.58681048]
[1760107077725,0.13887088,1252.9,1252.8,0.19679292]
[1760107086526,0.13887088,1252.9,1252.6,0.19679292]
[1760107086730,0.13887088,1252.9,1251.8,1.1876856]
[1760107086731,0.13887088,1252.9,1252.4,0.19679292]
[1760107086928,0.19757374,1252.6,1252.4,0.19679292]
[1760107088232,0.19757374,1252.6,1252.3,0.19679292]
[1760107088432,0.19757374,1252.4,1252.2,0.19679292]
[1760107089228,0.19757374,1252.5,1252.2,0.19679292]
[1760107089526,0.19757374,1252.5,1252.3,0.19679292]
[1760107089831,0.19757374,1252.7,1252.3,0.19679292]
[1760107090132,0.19757374,1252.7,1252.4,0.19679292]
[1760107091732,0.19757374,1252.7,1252.5,0.19679292]
[1760107092529,0.19757374,1252.7,1252.4,0.19679292]
[1760107093130,0.19757374,1252.6,1252.3,0.19679292]
[1760107093533,0.19757374,1252.5,1252.3,0.19679292]
[1760107093834,0.19757374,1252.5,1252.1,0.19679292]
[1760107094131,0.19757374,1252.4,1252.1,0.19679292]
[1760107094629,0.19757374,1252.3,1252.1,0.19679292]
[1760107094833,0.19757374,1252.3,1252.0,0.19679292]
[1760107095130,0.19757374,1252.2,1251.9,0.19679292]
[1760107096133,0.19757374,1252.2,1251.8,0.19679292]
[1760107096330,0.19757374,1252.1,1251.8,0.19679292]
[1760107096631,0.19757374,1252.1,1251.7,0.19679292]
[1760107096831,0.19757374,1251.9,1251.7,0.19679292]
[1760107097731,0.19757374,1252.3,1251.8,0.58681048]
[1760107098134,0.19757374,1252.3,1252.1,0.19679292]
[1760107103338,0.13887088,1252.9,1252.1,0.19679292]
[1760107103339,0.19757374,1252.4,1252.1,0.19679292]
[1760107103541,0.19757374,1252.4,1252.2,0.19679292]
[1760107105542,0.19757374,1252.4,1252.2,0.7836034]
[1760107109145,0.19757374,1252.4,1252.2,0.19679292]
[1760107109741,0.13887088,1252.9,1252.2,0.19679292]
[1760107109742,0.19757374,1252.5,1252.2,0.19679292]
[1760107109941,0.19757374,1252.6,1252.2,0.7836034]
[1760107110146,0.19757374,1252.6,1252.4,0.19679292]
[1760107110745,0.19757374,1252.6,1252.4,0.7836034]
[1760107113949,0.19757374,1252.6,1252.4,0.19679292]
[1760107114449,0.19757374,1252.6,1252.4,0.7836034]
[1760107114949,0.19757374,1252.6,1252.4,0.19679292]
[1760107116654,0.19757374,1252.8,1252.5,0.7836034]
[1760107118753,0.19757374,1252.7,1252.5,0.7836034]
[1760107119558,0.19757374,1252.8,1252.6,0.58681048]
[1760107119954,0.19757374,1252.8,1252.5,0.7836034]
[1760107120860,0.19757374,1252.8,1252.6,0.58681048]
[1760107121061,0.19757374,1252.8,1252.5,0.7836034]
[1760107121457,0.19757374,1252.8,1252.6,0.58681048]
[1760107122062,0.33644462,1252.9,1252.7,0.7836034]
[1760107124859,0.33644462,1252.9,1252.6,0.7836034]
[1760107125856,0.33644462,1252.9,1252.7,0.7836034]
[1760107126058,0.13887088,1252.9,1252.7,0.7836034]
[1760107126261,0.13887088,1252.9,1252.8,0.58681048]
[1760107126561,0.13887088,1252.9,1252.8,0.7836034]
[1760107130568,0.13887088,1252.9,1252.4,1.1876856]
[1760107130569,0.13887088,1252.9,1252.7,0.7917904]
[1760107130768,0.13887088,1252.9,1252.6,0.7917904]
[1760107130968,0.13887088,1252.9,1252.7,0.7917904]
[1760107131269,0.13887088,1252.9,1252.6,0.7917904]
[1760107131469,0.13887088,1252.9,1252.7,0.7917904]
[1760107131665,0.13887088,1252.9,1252.6,0.7917904]
[1760107131865,0.13887088,1252.9,1252.8,0.59143284]
[1760107133371,0.13887088,1252.9,1252.8,0.19709764]
[1760107134070,0.13887088,1252.9,1252.7,0.78853048]
[1760107134672,0.13887088,1252.9,1252.8,0.19709764]
[1760107135569,0.13887088,1252.9,1252.7,0.19709764]
[1760107136268,0.13887088,1252.9,1252.7,0.78853048]
[1760107136469,0.13887088,1252.9,1252.8,0.19709764]
[1760107137169,0.13887088,1252.9,1252.7,0.19709764]
[1760107138771,0.13887088,1252.9,1252.8,0.19709764]
[1760107140377,0.13887088,1252.9,1252.7,0.59143284]
[1760107143275,0.13887088,1252.9,1252.7,0.7917904]
[1760107143677,0.19757374,1253.2,1252.7,0.7917904]
[1760107143873,0.19757374,1253.2,1253.0,0.19691931]
[1760107144074,0.13885259,1253.1,1253.0,0.19691931]
[1760107145777,0.13885259,1253.1,1253.0,0.78767726]
[1760107145975,0.13885259,1253.1,1253.0,0.19691931]
[1760107146178,0.13885259,1253.1,1252.9,0.59075795]
[1760107146676,0.13885259,1253.1,1253.0,0.59075795]
[1760107148382,0.13885259,1253.1,1252.9,0.59075795]
[1760107148780,0.13885259,1253.1,1253.0,0.59075795]
[1760107148984,0.13885259,1253.1,1253.0,0.19651857]
[1760107149285,0.33642633,1253.1,1252.9,0.19651857]
[1760107151189,0.13885259,1253.1,1252.9,0.19651857]
[1760107151589,0.13885259,1253.1,1252.5,0.59075795]
[1760107151590,0.13885259,1253.1,1253.0,0.19651857]
[1760107156692,0.13885259,1253.1,1252.8,0.59075795]
[1760107157089,0.13885259,1253.1,1252.9,0.59075795]
[1760107157392,0.13885259,1253.1,1253.0,0.59075795]
[1760107158691,0.13885259,1253.1,1252.9,0.7917904]
[1760107159490,0.19757374,1253.5,1252.9,0.7917904]
[1760107159794,0.13882434,1253.4,1253.3,0.19647762]
[1760107160589,0.13882434,1253.4,1253.2,0.58943288]
[1760107162391,0.13882434,1253.4,1253.3,0.19649376]
[1760107164393,0.33639808,1253.4,1253.2,0.19649376]
[1760107164695,0.13882434,1253.4,1253.2,0.19649376]
[1760107165892,0.33639808,1253.4,1253.2,0.19649376]
[1760107166596,0.33639808,1253.4,1253.0,0.19649376]
[1760107166797,0.19757374,1253.2,1253.0,0.19649376]
[1760107167296,0.19757374,1253.2,1252.9,0.19649376]
[1760107167695,0.19757374,1253.1,1252.9,0.19649376]